Cogmind - Beta 11.1 @@@ ROGUE MODE // 2022.11.20 @ 23:46:27 Player: darki Result: Destroyed by G-47 Trooper with Particle Gun Performance ------------- Evolutions (3) 1500 Regions Visited (9) 1800 Robots Destroyed (58) 290 Value Destroyed (1517) 1517 Prototype IDs (23) 460 Alien Tech Used (0) 0 Bonus (1022) 1022 TOTAL SCORE: 6589 Bonus ------- High Alert Combat Kills 22 Entered Garrisons 200 Entered DSFs 500 Aligned with FarCom 300 Cogmind --------- Core Integrity 0/700 Matter 105/300 Energy 11/100 System Corruption 0% Temperature Cool (9) Movement Core (100) Ox1 Location -7/DSF Parts ------- > --- POWER (1) -------- (None) > --- PROPULSION (3) --- (None) > --- UTILITY (5) ------ (None) > --- WEAPON (4) ------- EMP Blaster > --- INVENTORY (5) ---- Airjet High-powered Shock Rifle High-powered Shock Rifle Improved EM Pulse Cannon Improved EM Pulse Cannon Peak State ------------ > --- POWER ------------ Nuclear Core > --- PROPULSION ------- Light Treads Advanced Treads Advanced Treads > --- UTILITY ---------- Cargo Storage Unit Advanced Targeting Computer Kinecellerator Improved Medium Armor Plating > --- WEAPON ----------- Minigun Minigun Minigun Gauss Rifle > --- INVENTORY -------- Nuclear Core Reinforced Deuterium Engine Fission Core Light Fission Core Light Treads Light Treads Improved Heat Sink High-capacity Matter Pod Compact Matter Pod Compact Matter Pod Compact Matter Pod Improved Signal Interpreter Improved Targeting Computer Target Analyzer Core Analyzer Core Analyzer Core Analyzer Improved Medium Armor Plating Improved Medium Armor Plating Improved Medium Armor Plating Improved EM Pulse Cannon Improved EM Pulse Cannon Improved EM Pulse Cannon Guided Plasma Cannon Minigun Gauss Rifle Light Cannon Light Cannon Light Cannon [Rating: 45] Favorites ----------- Power Nuclear Core Engine Light Ion Engine Power Core Nuclear Core Propulsion Aluminum Leg Treads Advanced Treads Leg Aluminum Leg Hover Unit Gravmag System Utility Cargo Storage Unit Device Structural Scanner Storage Cargo Storage Unit Processor Advanced Targeting Computer Protection Light Armor Plating Weapon Minigun Energy Gun Small Laser Energy Cannon Improved EM Pulse Cannon Ballistic Gun Minigun Ballistic Cannon Light Cannon Launcher EMP Blaster Build | -11 -10 -10 -10 -9 -8 -8 -8 -7 -7 ------- Run | Scr Mat Min Exi Min Mat Gar Mat Fac DSF Slots Evolved 6 | . . . . . 4 . . 2 . Power . | . . . . . . . . . . Propulsion 1 | . . . . . 1 . . . . Utility 3 | . . . . . 1 . . 2 . Weapon 2 | . . . . . 2 . . . . Parts Attached 59 | . 5 4 . . 17 2 3 2 26 Power 7 | . . 3 . . 1 . . . 3 Engine 2 | . . 2 . . . . . . . Core 5 | . . 1 . . 1 . . . 3 Reactor . | . . . . . . . . . . Propulsion 13 | . . 1 . . 4 . 2 . 6 Treads 8 | . . . . . 4 . 2 . 2 Leg 1 | . . 1 . . . . . . . Wheel . | . . . . . . . . . . Hover 4 | . . . . . . . . . 4 Flight . | . . . . . . . . . . Utility 17 | . 2 . . . 5 1 1 2 6 Device 4 | . 1 . . . 1 . . . 2 Storage 2 | . 1 . . . 1 . . . . Processor 2 | . . . . . 1 . . 1 . Hackware . | . . . . . . . . . . Protection 9 | . . . . . 2 1 1 1 4 Artifact . | . . . . . . . . . . Weapon 22 | . 3 . . . 7 1 . . 11 Energy Gun 1 | . 1 . . . . . . . . Energy Cannon 2 | . . . . . 1 . . . 1 Ballistic Gun 10 | . . . . . 4 1 . . 5 Ballistic Cannon 7 | . 2 . . . 2 . . . 3 Launcher 2 | . . . . . . . . . 2 Special Weapon . | . . . . . . . . . . Impact Weapon . | . . . . . . . . . . Slashing Weapon . | . . . . . . . . . . Piercing Weapon . | . . . . . . . . . . Special Melee Weapon . | . . . . . . . . . . Unidentified Prototypes . | . . . . . . . . . . Parts Lost 37 | . . 1 . . . 1 . . 35 Power 4 | . . . . . . . . . 4 Propulsion 8 | . . 1 . . . . . . 7 Utility 14 | . . . . . . . . . 14 Weapon 11 | . . . . . . 1 . . 10 Highest Loss Streak 32 | . . 1 . . . 1 . . 32 To Critical Strikes . | . . . . . . . . . . Average Slot Usage (%) 90 | . 98 99 100 100 81 89 89 92 76 Engine 1 | . 14 4 . . . . . . . Core 8 | . . 9 14 14 9 9 9 7 5 Treads 14 | . . . . . 4 27 26 23 18 Leg 10 | . 28 27 28 28 15 . . . . Device 4 | . 5 14 14 14 5 . . . 2 Storage 10 | . 21 14 14 14 9 9 9 7 6 Protection 5 | . . . . . 2 9 9 15 9 Energy Gun 1 | . 20 . . . . . . . . Ballistic Gun 23 | . . . . . 30 35 36 30 23 Ballistic Cannon 7 | . 6 28 28 28 5 . . . . Naked Turns 24 | . . . . . . . . . 24 Heaviest Build 173 | 11 31 32 32 32 162 162 166 173 173 Greatest Support 64 | 20 20 20 20 20 62 62 64 64 64 Greatest Overweight (x) 7 | . 1 2 1 1 7 2 2 2 3 Average Overweight (x) 1 | . . 1 1 1 2 2 2 2 1 Largest Inventory Capacity 30 | 8 15 15 15 15 30 30 30 30 30 Average Capacity 24 | 8 14 15 15 15 24 30 30 30 26 Most Carried 30 | 6 14 15 15 15 22 30 30 29 30 Average Carried 22 | 6 7 14 14 15 17 28 29 28 25 Final Capacity 30 | 8 15 15 15 15 30 30 30 30 5 Final Carried 30 | 6 14 15 15 15 21 30 30 28 5 Class Distribution -------------------- 54% | Hauler-Skirmisher 30% | Mutant 6% | Skirmisher 5% | Hauler-Tank Dominant Class ---------------- Mutant | -10/Materials Mutant | -10/Mines Mutant | -10/Exiles Mutant | -9/Mines Hauler-Skirmisher | -8/Materials Hauler-Skirmisher | -8/Garrison Hauler-Skirmisher | -8/Materials Hauler-Tank | -7/Factory Hauler-Tank | -7/DSF Resources | -11 -10 -10 -10 -9 -8 -8 -8 -7 -7 ----------- Run | Scr Mat Min Exi Min Mat Gar Mat Fac DSF Matter Collected 2547 | 176 10 350 200 327 102 635 564 . 183 Remotely . | . . . . . . . . . . Salvage Created 2098 | . 130 347 . . 94 405 805 . 317 Parts 134 | . 7 21 . . 3 27 52 . 24 Haulers Intercepted 6 | . . . . . 1 . 5 . . Recyclers Shooed . | . . . . . . . . . . Parts Field Recycled . | . . . . . . . . . . Retrieved Matter . | . . . . . . . . . . Parts Self-Destructed . | . . . . . . . . . . Prevented . | . . . . . . . . . . Kills | -11 -10 -10 -10 -9 -8 -8 -8 -7 -7 ------- Run | Scr Mat Min Exi Min Mat Gar Mat Fac DSF Combat Hostiles Destroyed 41 | . 5 7 . . 1 11 11 . 6 Guns 34 | . 5 . . . 1 11 11 . 6 Cannons 7 | . . 7 . . . . . . . Classes Destroyed 11 | . 2 3 . . 2 1 2 . 1 Worker 1 | . . . . . . . 1 . . Builder 2 | . . 1 . . . . 1 . . Tunneler 2 | . . 1 . . . . 1 . . Hauler 6 | . . . . . 1 . 5 . . Recycler 3 | . . 2 . . . . 1 . . Watcher 3 | . . . . . . . 3 . . Swarmer 17 | . 3 3 . . . 4 5 . 2 Grunt 12 | . 2 4 . . . 2 4 . . Sentry 5 | . . . . . 1 3 1 . . Specialist 4 | . . . . . . . . . 4 Hunter 3 | . . . . . . 2 1 . . Best Kill Streak 4 | . 3 4 . . 1 4 4 . 2 Combat Bots Only 4 | . 3 3 . . 1 4 3 . 2 Max Kills in Single Turn 2 | . 1 1 . . 1 2 2 . 2 Gunslinging 1 | . . . . . . 1 . . 1 Exploded . | . . . . . . . . . . Melee . | . . . . . . . . . . Uniques/NPCs Destroyed . | . . . . . . . . . . Combat | -11 -10 -10 -10 -9 -8 -8 -8 -7 -7 -------- Run | Scr Mat Min Exi Min Mat Gar Mat Fac DSF Damage Taken 4815 | . 218 317 . . 58 559 358 . 3305 Core 948 | . 44 58 . . . 103 29 . 714 Absorbed by Shields 19 | . . . . . . . . . 19 Core Remaining (%) 78 | 100 . . . 59 . . 76 . . Volleys Fired 117 | . 18 20 . . 5 23 34 . 17 Largest 4 | . 2 2 . . 4 4 4 . 4 Hottest 140 | . 90 70 . . 140 100 100 . 116 Shots Fired 375 | . 36 40 . . 20 91 136 . 52 Gun 320 | . 36 . . . 16 91 136 . 41 Cannon 54 | . . 40 . . 4 . . . 10 Launcher 1 | . . . . . . . . . 1 Special . | . . . . . . . . . . Kinetic 338 | . . 40 . . 20 91 136 . 51 Thermal 29 | . 29 . . . . . . . . Explosive . | . . . . . . . . . . Electromagnetic 8 | . 7 . . . . . . . 1 Robot Hit Streak 15 | . 6 3 . . 6 11 15 . 7 Robot Miss Streak 5 | . 5 3 . . 1 2 5 . 2 Penetration Max 1 | . . . . . . . . . 1 Secondary Targets 7 | . . . . . . 4 1 . 2 Max Gunslinging Chain 2 | . . . . . . 1 1 . 2 Shots Hit Robots 207 | . 20 18 . . 14 57 66 . 32 Core Hits 89 | . 8 13 . . 3 19 32 . 14 Critical Kills . | . . . . . . . . . . Critical Parts Destroyed . | . . . . . . . . . . Critical Strikes 4 | . 1 2 . . . . . . 1 Burn 1 | . 1 . . . . . . . . Blast 3 | . . 2 . . . . . . 1 Melee Attacks . | . . . . . . . . . . Impact . | . . . . . . . . . . Slashing . | . . . . . . . . . . Piercing . | . . . . . . . . . . Sneak Attacks . | . . . . . . . . . . Combat Hostiles . | . . . . . . . . . . Follow-up Attacks . | . . . . . . . . . . Damage Inflicted 3598 | . 279 354 . . 243 774 1174 . 774 Guns 2865 | . 259 . . . 190 774 1105 . 537 Cannons 568 | . . 342 . . 53 . . . 173 Explosions 84 | . 20 . . . . . . . 64 Melee . | . . . . . . . . . . Ramming 81 | . . 12 . . . . 69 . . Kinetic 3174 | . . 342 . . 243 774 1105 . 710 Thermal 226 | . 226 . . . . . . . . Explosive . | . . . . . . . . . . Electromagnetic 117 | . 53 . . . . . . . 64 Impact . | . . . . . . . . . . Slashing . | . . . . . . . . . . Piercing . | . . . . . . . . . . Highest Corruption . | . . . . . . . . . . Average Corruption . | . . . . . . . . . . Corruption Purged . | . . . . . . . . . . Corruption Blocked . | . . . . . . . . . . Overload Shots . | . . . . . . . . . . Overflow Damage . | . . . . . . . . . . Projectiles . | . . . . . . . . . . Explosions . | . . . . . . . . . . Melee . | . . . . . . . . . . Knockbacks 4 | . . 1 . . . . 1 . 2 Impact 1 | . . . . . . . 1 . . Kinetic 3 | . . 1 . . . . . . 2 Secondary . | . . . . . . . . . . Self-Inflicted Damage 22 | . 22 . . . . . . . . Shots 1 | . 1 . . . . . . . . Rammed 5 | . . . . . . . 5 . . Targets Rammed 7 | . . 1 . . . . 6 . . Kicked 1 | . . 1 . . . . . . . Crushed 1 | . . . . . . . 1 . . Highest Temperature 359 | . 234 162 . . 126 359 284 . 28 Average Temperature 80 | . 88 61 . . 52 107 78 . 13 Received Heat Transfer 999 | . 60 177 . . 18 90 90 . 564 Effects 3 | . 1 . . . . 2 . . . Energy Bleed 1 | . . . . . . 1 . . . Interference 2 | . 1 . . . . 1 . . . Siege Activations . | . . . . . . . . . . Robots Corrupted . | . . . . . . . . . . Combat Hostiles . | . . . . . . . . . . Parts Fried . | . . . . . . . . . . Impact Corruptions . | . . . . . . . . . . Robots Melted . | . . . . . . . . . . Combat Hostiles . | . . . . . . . . . . Parts Melted 4 | . 4 . . . . . . . . Heat Transferred 645 | . 645 . . . . . . . . Parts Sabotaged . | . . . . . . . . . . Parts Stolen . | . . . . . . . . . . Parts Stripped . | . . . . . . . . . . Power Chain Reactions 1 | . 1 . . . . . . . . Missiles Intercepted . | . . . . . . . . . . Alert | -11 -10 -10 -10 -9 -8 -8 -8 -7 -7 ------- Run | Scr Mat Min Exi Min Mat Gar Mat Fac DSF Peak Influence 435 | . 167 110 . . 61 435 255 3 117 Initial 211 | . . 5 . . . . 211 3 2 Average 108 | . 73 76 . . 20 249 117 3 45 Maximum Alert Level 2 | . . . . . . 2 1 . . Low Security (%) 86 | 100 100 100 . 100 100 55 85 100 100 Level 1 7 | . . . . . . 19 14 . . Level 2 5 | . . . . . . 25 . . . Level 3 . | . . . . . . . . . . Level 4 . | . . . . . . . . . . Level 5 . | . . . . . . . . . . High Security . | . . . . . . . . . . Max Security . | . . . . . . . . . . Squads Dispatched 5 | . . . . . . . 1 . 4 Investigation 1 | . . . . . . . 1 . . Extermination . | . . . . . . . . . . Reinforcement 4 | . . . . . . . . . 4 Assault . | . . . . . . . . . . Garrison . | . . . . . . . . . . Intercept . | . . . . . . . . . . Searches Triggered . | . . . . . . . . . . Construction Impeded . | . . . . . . . . . . Haulers Reinforced . | . . . . . . . . . . Active Scanning Responses . | . . . . . . . . . . Cargo Convoy Interrupts . | . . . . . . . . . . Stealth | -11 -10 -10 -10 -9 -8 -8 -8 -7 -7 --------- Run | Scr Mat Min Exi Min Mat Gar Mat Fac DSF Distress Signals 3 | . 1 . . . . . 2 . . Communications Jammed . | . . . . . . . . . . Distress Signals . | . . . . . . . . . . Times Spotted 74 | . 9 7 . . 2 11 21 . 24 Peak Tracking Total 9 | . 4 3 . . 1 6 4 . 9 Tactical Retreats 2 | . . . . . . . . . 2 Traps | -11 -10 -10 -10 -9 -8 -8 -8 -7 -7 ------- Run | Scr Mat Min Exi Min Mat Gar Mat Fac DSF Traps Triggered 2 | . . . . . . 1 . . 1 Indirectly . | . . . . . . . . . . Trap Hack Attempts . | . . . . . . . . . . Triggered . | . . . . . . . . . . Disarmed . | . . . . . . . . . . Reprogrammed . | . . . . . . . . . . Reused . | . . . . . . . . . . Traps Extracted . | . . . . . . . . . . Installed . | . . . . . . . . . . Triggered . | . . . . . . . . . . Exploded 2 | . . . . . . . . . 2 Machines | -11 -10 -10 -10 -9 -8 -8 -8 -7 -7 ---------- Run | Scr Mat Min Exi Min Mat Gar Mat Fac DSF Machines Disabled 1 | . . . . . 1 . . . . Max in Single Turn 1 | . . . . . 1 . . . . Machines Sabotaged . | . . . . . . . . . . Garrisons Compromised . | . . . . . . . . . . Overloaded Fab Kills . | . . . . . . . . . . Hacking | -11 -10 -10 -10 -9 -8 -8 -8 -7 -7 --------- Run | Scr Mat Min Exi Min Mat Gar Mat Fac DSF Machines Accessed 8 | . 1 . 2 . 1 . 3 1 . Terminals 5 | . 1 . . . . . 3 1 . Fabricators . | . . . . . . . . . . Repair Stations . | . . . . . . . . . . Recycling Units . | . . . . . . . . . . Scanalyzers . | . . . . . . . . . . Garrison Access 1 | . . . . . 1 . . . . Total Hacks 20 | . 1 . 5 . 1 . 12 1 . Successful 15 | . 1 . 5 . 1 . 7 1 . Failed 5 | . . . . . . . 5 . . Catastrophic 3 | . . . . . . . 3 . . Database Lockouts . | . . . . . . . . . . Manual 7 | . . . 1 . . . 6 . . Terminals 14 | . 1 . . . . . 12 1 . Fabricators . | . . . . . . . . . . Repair Stations . | . . . . . . . . . . Recycling Units . | . . . . . . . . . . Scanalyzers . | . . . . . . . . . . Garrison Access 1 | . . . . . 1 . . . . Terminal Hacks 12 | . 1 . 5 . . . 5 1 . Record 4 | . . . 4 . . . . . . Open DSF 1 | . . . . . . . . 1 . Level Access Points 1 | . . . . . . . 1 . . Unreport Threat 4 | . . . . . . . 4 . . Zone Layout 1 | . 1 . . . . . . . . EX-Prototype ID Bank 1 | . . . 1 . . . . . . Fabricator Hacks . | . . . . . . . . . . Repair Station Hacks . | . . . . . . . . . . Recycling Unit Hacks . | . . . . . . . . . . Scanalyzer . | . . . . . . . . . . Garrison Access Hacks 1 | . . . . . 1 . . . . Unlock Access 1 | . . . . . 1 . . . . Unauthorized Hacks 2 | . . . . . . . 2 . . Terminals 2 | . . . . . . . 2 . . Botnet 2 | . . . . . . . 2 . . Fabricators . | . . . . . . . . . . Repair Stations . | . . . . . . . . . . Recycling Units . | . . . . . . . . . . Scanalyzers . | . . . . . . . . . . Garrison Access . | . . . . . . . . . . Data Cores Recovered . | . . . . . . . . . . Used . | . . . . . . . . . . Hacking Detections 3 | . 1 . . . . . 2 . . Full Trace Events 1 | . . . . . . . 1 . . Feedback Events . | . . . . . . . . . . Feedback Blocked . | . . . . . . . . . . Robot Schematics Acquired . | . . . . . . . . . . Robots Built . | . . . . . . . . . . Authchips . | . . . . . . . . . . Time . | . . . . . . . . . . Total Robot Build Rating . | . . . . . . . . . . Part Schematics Acquired . | . . . . . . . . . . Parts Built . | . . . . . . . . . . Authchips . | . . . . . . . . . . Time . | . . . . . . . . . . Total Part Build Rating . | . . . . . . . . . . Parts Repaired . | . . . . . . . . . . Time . | . . . . . . . . . . Parts Recycled . | . . . . . . . . . . Recycled Matter . | . . . . . . . . . . Retrieved Matter . | . . . . . . . . . . Retrieved Components . | . . . . . . . . . . Parts Scanalyzed . | . . . . . . . . . . Part Schematics Acquired . | . . . . . . . . . . Parts Damaged . | . . . . . . . . . . Bothacking | -11 -10 -10 -10 -9 -8 -8 -8 -7 -7 ------------ Run | Scr Mat Min Exi Min Mat Gar Mat Fac DSF Used RIF Installer . | . . . . . . . . . . Robots Hacked . | . . . . . . . . . . Non-combat . | . . . . . . . . . . Combat . | . . . . . . . . . . Robot Hacks Applied . | . . . . . . . . . . Relay Couplers Released . | . . . . . . . . . . Fabnet Peak Effective % . | . . . . . . . . . . Robots Rewired . | . . . . . . . . . . Allies Hacked . | . . . . . . . . . . Hacks Repelled . | . . . . . . . . . . Allies | -11 -10 -10 -10 -9 -8 -8 -8 -7 -7 -------- Run | Scr Mat Min Exi Min Mat Gar Mat Fac DSF Total Allies . | . . . . . . . . . . Largest Group . | . . . . . . . . . . Highest-Rated Group . | . . . . . . . . . . Highest-Rated Ally . | . . . . . . . . . . Total Orders . | . . . . . . . . . . Ally Attacks . | . . . . . . . . . . Total Damage . | . . . . . . . . . . Kills . | . . . . . . . . . . Allies Corrupted . | . . . . . . . . . . Allies Melted . | . . . . . . . . . . Intel | -11 -10 -10 -10 -9 -8 -8 -8 -7 -7 ------- Run | Scr Mat Min Exi Min Mat Gar Mat Fac DSF Robot Analysis Total . | . . . . . . . . . . Derelict Logs Recovered 1 | . . 1 . . . . . . . Drone Launches . | . . . . . . . . . . Drone Recoveries . | . . . . . . . . . . Exploration | -11 -10 -10 -10 -9 -8 -8 -8 -7 -7 ------------- Run | Scr Mat Min Exi Min Mat Gar Mat Fac DSF Turns Passed 5319 | 2 468 529 504 95 840 1010 1328 120 423 Spaces Moved 1790 | 2 212 237 263 50 233 289 360 38 106 Core 20 | . . . . . . . . . 20 Treads 789 | . . . . . 43 289 360 38 59 Legs 954 | 2 212 237 263 50 190 . . . . Wheels . | . . . . . . . . . . Hover 27 | . . . . . . . . . 27 Flight . | . . . . . . . . . . Fastest Speed 50 | 120 120 190 190 190 190 315 310 310 50 Average Speed 254 | 120 181 190 190 190 330 315 310 310 198 Slowest Speed 610 | 120 190 260 190 190 610 315 315 310 392 Overloaded Moves . | . . . . . . . . . . Propulsion Burnouts . | . . . . . . . . . . Robots Hopped . | . . . . . . . . . . Cave-ins Triggered . | . . . . . . . . . . Exploration Rate (%) 34 | 2 46 51 60 15 18 38 34 2 77 Regions Visited 9 Branch Regions 3 Pre-discovered Areas 2 | . . 1 1 . . . . . . Known Exits Taken 3 | . . . . . 1 . 1 1 . Unknown Exits Taken 5 | 1 1 1 1 1 . . . . . Scrap Searched 1 | . . 1 . . . . . . . Spaces Dug . | . . . . . . . . . . Terrain Destroyed 5 | . 4 . . . . . . . 1 Melee . | . . . . . . . . . . Projectile 1 | . . . . . . . . . 1 AOE 4 | . 4 . . . . . . . . Terrain Rammed . | . . . . . . . . . . Walls Destroyed . | . . . . . . . . . . Machines Disabled . | . . . . . . . . . . Actions | -11 -10 -10 -10 -9 -8 -8 -8 -7 -7 --------- Run | Scr Mat Min Exi Min Mat Gar Mat Fac DSF Total 2346 | 1 260 274 270 53 297 351 511 40 289 Wait 271 | . 16 11 . . 20 25 88 . 111 Move 1782 | 1 211 236 262 49 232 288 359 38 106 Hop . | . . . . . . . . . . Pick Up 46 | . 7 . 4 2 10 10 9 . 4 Fast Attach 26 | . 4 3 . . 10 . 2 . 7 Attach 23 | . . . . . 6 1 . 2 14 Detach 2 | . . . . . 2 . . . . Swap 10 | . 1 1 . . 1 1 1 . 5 Drop 47 | . 3 2 4 2 11 1 12 . 12 Fire 117 | . 18 20 . . 5 23 34 . 17 Melee . | . . . . . . . . . . Ram . | . . . . . . . . . . Kick 1 | . . 1 . . . . . . . Crush 6 | . . . . . . . 6 . . Escape Stasis 15 | . . . . . . 2 . . 13 Rewire . | . . . . . . . . . . Trap . | . . . . . . . . . . Miscellaneous . | . . . . . . . . . . Route ------- -11/Scrapyard -10/Materials -10/Mines -10/Exiles -9/Mines -8/Materials -8/Garrison -8/Materials (discovered 3 exits: *Fac x3) -7/Factory -7/DSF History --------- Turn | Location | Event 1 | -11/Scrapyard | Discovered new exit (range 1) 3 | -11/Scrapyard | Entered Materials 273 | -10/Materials | Discovered new exit (range 12) 319 | -10/Materials | Build established: Mutant 471 | -10/Materials | Entered Mines 506 | -10/Mines | Learned Materials non-interactive machine intel 713 | -10/Mines | Learned location of Storage (-8) 993 | -10/Mines | Deemed a non-threat by the Exiles lab entrance 993 | -10/Mines | Discovered new exit (range 5) 1000 | -10/Mines | Entered Exiles 1062 | -10/Exiles | Met 8R-AWN 1093 | -10/Exiles | Met EX-HEX 1146 | -10/Exiles | Met EX-BIN 1169 | -10/Exiles | Aligned with FarCom system 1171 | -10/Exiles | Given EX-Vault access code 1214 | -10/Exiles | Opened EX-Vault 1228 | -10/Exiles | Found Gui. Plasma Cannon 1269 | -10/Exiles | Warned to stay clear of 0b10 Research branches 1322 | -10/Exiles | Met EX-DEC 1367 | -10/Exiles | Learned location of Zion (-6) 1480 | -10/Exiles | Discovered new exit (range 14) 1504 | -10/Exiles | Left Exiles lab with Gui. Plasma Cannon 1504 | -10/Exiles | Entered Mines 1587 | -9/Mines | Discovered new exit (range 5) 1599 | -9/Mines | Entered Materials 1599 | -8/Materials | Evolved 4 slots: Propulsion x1, Utility x1, Weapon x2 1600 | -8/Materials | Loaded intel: 39 non-interactive machine locations 1660 | -8/Materials | Identified exit to Garrison 1894 | -8/Materials | Build established: Skirmisher 2242 | -8/Materials | Build established: Hauler-Skirmisher 2439 | -8/Materials | Entered Garrison 2640 | -8/Garrison | Triggered checkpoint 3405 | -8/Garrison | Discovered new exit (range 15) 3449 | -8/Garrison | Entered Materials 4544 | -8/Materials | Discovered new exit (range 16) 4771 | -8/Materials | Identified exit to Factory 4777 | -8/Materials | Entered Factory 4777 | -7/Factory | Evolved 2 slots: Utility x2 4897 | -7/Factory | Identified exit to DSF 4897 | -7/Factory | Entered DSF 4949 | -7/DSF | Additional patrols routed to DSF 5267 | -7/DSF | Core integrity fell below 50% 5296 | -7/DSF | Lost 32 parts (4p4n14u10w) 5308 | -7/DSF | Core integrity fell below 20% 5320 | -7/DSF | Destroyed by G-47 Trooper with Particle Gun Last Messages --------------- 05276_ Field strength at 52. 05277_ Field strength at 46. 05278_ Field strength at 40. 05279_ Field strength at 29. 05280_ Field strength at 18. 05281_ Field strength at 8. 05282_ Field strength at 2. 05282_ Stasis field depleted. 05283_ Acquired Airjet. 05286_ Acquired Gravmag System. 05288_ G-50 Soldier knocked back. 05288_ Acquired Gravmag System. 05301_ Gravmag System destroyed. 05304_ Dropped Core Analyzer. 05305_ Acquired Hpw. Shock Rifle. 05305_ Gravmag System destroyed. 05306_ Acquired Hpw. Shock Rifle. 05312_ Acquired EMP Blaster. 05318_ X-67 Chaingunner shuts down. 05320_ Dropped EMP Blaster. Map ----- +----------------------------------------------------+ | ???????????????????### ###??????##=!=%#???????? | | ???????????????????#!! !!#??????#===!=#???????? | | ???????????????????#!! !!#??????#==![![#??????? | | ???????????????????#!! !!#??????#==%=%!#??????? | | ???????????????###?### ###?###??##=[%%"#??????? | | ???????????#]??#!!!?## ##?!!!#??!#!%=**#??????? | | ????????? ##]]]#!!!## ##!!!#!!!#%%%**#??????? | | ???????? [=*%!!#??????? | | ???????? g ==%!!#??????? | | ???????? "%%%!!#??????? | | ????????? ##!!!#***## ##!!!# ## #??????? | | ???????????#!??#***?##x ###!!!# ## #??????? | | ???????????????###?### ###?#####??######??????? | | ???????????????????#!!x ! [#????????????????????? | | ???????????????????#!! g [#????????????????????? | | ???????????????????#!! [[#????????????????????? | | ???????????????????### g###????????????????????? | | ???????????????????# #????????????????????? | | ???????????????????# #????????????????????? | | ???????????????#???# #????????????????????? | | ???????????????#!!?### ###????????????????????? | | ???????????##!!#!!!### ###????????????????????? | | ?????????? #????????????????????? | | ?????????? #????????????????????? | | ??????????"##!!# #!! ] #????????????????????? | | ???????????????###?#!! ]@ #????????????????????? | | ???????????????????#########????????????????????? | | ????????????????????????????????????????????????? | | ????????????????????????????????????????????????? | | ????????????????????????????????????????????????? | | ????????????????????????????????????????????????? | | ????????????????????????????????????????????????? | | ????????????????????????????????????????????????? | | ????????????????????????????????????????????????? | | | | | | | | | | | | | | | | | | | | | | | | | | | | | | | | | +----------------------------------------------------+ Best States ------------- Heat Dissipation 45 Energy Generation 14 Energy Capacity 250 Matter Stores 300 Matter Capacity 300 Sight Range 16 Terrain Scan Density 10 Armor Coverage 450 Evasion (%) 55 Targeting Accuracy 8 Recoil Reduction 3 Kinecelleration 30 Item Schematics ----------------- None Robot Schematics ------------------ None Fabricated ------------ Nothing Alien Tech Used ----------------- None Achievements -------------- None Challenges ------------ None Game ------ Seed CannonHardenedLeg Manual? 0 Play Time 00:27:01 Cumulative 133.6 hours Start 2022.11.20 @ 23:20:20 End 2022.11.20 @ 23:46:27 Sessions 1 Manual Loads 0 Difficulty Rogue Special Mode None Game No. 148 Rogue 148 Adventurer 0 Explorer 0 Win Type - Total 0 Types 0/0/0/0/0/0/0/0/0 Lore% 54 Gallery% 68 Achievement% 53 Wizard Run 0 Options --------- ASCII 0 Keyboard 0 Movement Mouse Keybinds 0 Fullscreen 1 Font 18/SmallcapsGlow Map View 76x50 Tactical HUD 1 Map Filters NONE Filters NONE Steam 1 RUN: 13e36914-b929-4b44-bb82-dbcbc9e4acd2